bitfinex/quotes_ETHUSD_20240927
["timestamp","ask_amount","ask_price","bid_price","bid_amount"]
[1727475426882,1.16659405,2701.5,2701.4,2.36528269]
[1727475427072,1.16659405,2701.5,2701.4,6.06706269]
[1727475427663,1.55170232,2701.7,2701.5,3.70164]
[1727475427664,1.16638739,2701.6,2701.5,3.70164]
[1727475427877,1.16638739,2701.6,2701.5,3.76343086]
[1727475428183,1.16638739,2701.6,2701.5,4.52223086]
[1727475428360,1.55170232,2701.7,2701.6,3.70151]
[1727475428562,1.94406371,2701.7,2701.6,3.70151]
[1727475428886,1.55515889,2701.7,2701.6,3.76132957]
[1727475429575,1.94406371,2701.8,2701.6,3.76132957]
[1727475429769,1.94406371,2701.8,2701.7,3.70137]
[1727475430094,1.55510681,2701.9,2701.7,3.76110172]
[1727475430792,1.16610713,2701.8,2701.7,3.76110172]
[1727475432850,1.16610713,2701.9,2701.8,3.70123]
[1727475433050,1.16610713,2701.9,2701.8,3.76080876]
[1727475433677,1.55510681,2701.9,2701.8,3.76080876]
[1727475434852,1.16580626,2701.9,2701.8,3.76080876]
[1727475435983,1.16569899,2701.9,2701.8,3.76080876]
[1727475436757,1.16562275,2701.9,2701.8,3.76080876]
[1727475437760,1.55510681,2702.0,2701.8,3.76080876]
[1727475438292,1.55510681,2701.9,2701.8,3.76080876]
[1727475438854,1.1654322,2701.9,2701.8,3.76080876]
[1727475439554,1.1654322,2702.0,2701.8,3.76080876]
[1727475439758,1.1654322,2701.9,2701.8,3.76080876]
[1727475441273,1.1654322,2702.0,2701.8,3.76080876]
[1727475441995,1.1654322,2701.9,2701.8,3.76080876]
[1727475442854,1.1654322,2702.0,2701.8,3.76080876]
[1727475443988,1.1654322,2701.9,2701.8,3.76080876]
[1727475445204,1.1654322,2702.0,2701.8,3.76080876]
[1727475445891,1.1654322,2701.9,2701.8,3.76080876]
[1727475447216,1.55510681,2702.1,2701.8,3.76080876]
[1727475447217,1.1654322,2702.0,2701.8,3.76080876]
[1727475448173,1.1654322,2701.9,2701.8,3.76080876]
[1727475449171,1.1654322,2702.0,2701.8,3.76080876]
[1727475450021,1.1654322,2701.9,2701.8,3.76080876]
[1727475451271,1.1654322,2702.0,2701.8,3.76080876]
[1727475451974,1.1654322,2701.9,2701.8,3.76080876]
[1727475453330,1.1654322,2702.0,2701.8,3.76080876]
[1727475454316,1.1654322,2701.9,2701.8,3.76080876]
[1727475455317,1.1654322,2702.0,2701.8,3.76080876]
[1727475455518,1.55510681,2702.0,2701.8,3.76080876]
[1727475455723,1.16510228,2701.9,2701.8,3.76080876]
[1727475457007,1.16510228,2702.0,2701.8,3.76080876]
[1727475457220,1.16510228,2701.9,2701.8,3.76080876]
[1727475458927,1.55510681,2702.0,2701.8,0.05957876]
[1727475459229,1.55510681,2702.0,2701.5,4.46037]
[1727475459230,1.49858307,2701.9,2701.5,3.70151]
[1727475459425,1.16532397,2701.7,2701.6,3.70149]
[1727475459732,1.16532397,2701.7,2701.5,0.831]
[1727475460025,1.16532397,2701.7,2701.5,4.53261]
[1727475462507,1.16532397,2701.6,2701.5,4.53261]
[1727475462913,1.16532397,2701.7,2701.5,4.53261]
[1727475463096,1.16532397,2701.6,2701.5,4.53261]
[1727475463509,1.16532397,2701.7,2701.5,4.53261]
[1727475464446,1.16532397,2701.6,2701.5,4.53261]
[1727475465924,1.55376964,2701.7,2701.5,4.53261]
[1727475465925,1.16532397,2701.7,2701.5,4.53261]
[1727475466319,1.1659712,2701.6,2701.5,4.53261]
[1727475466650,1.16597682,2701.6,2701.5,4.53261]
[1727475467247,1.16597682,2701.7,2701.5,4.53261]
[1727475467755,1.16597682,2701.6,2701.5,4.53261]
[1727475468244,1.16597682,2701.7,2701.5,4.53261]
[1727475468546,1.16597682,2701.6,2701.5,4.53261]
[1727475468759,1.16597682,2701.7,2701.5,4.53261]
[1727475469652,1.16597682,2701.6,2701.5,3.70161]
[1727475471935,1.16597682,2701.6,2701.5,3.75605438]
[1727475472839,1.94438439,2701.6,2701.5,3.75605438]
[1727475473153,1.94438439,2701.7,2701.5,3.75605438]
[1727475473314,1.55571236,2701.6,2701.5,3.75605438]
[1727475474511,1.55571236,2701.7,2701.5,3.75605438]
[1727475475959,1.16683868,2701.6,2701.5,3.75605438]
[1727475476163,1.16682912,2701.6,2701.5,3.75605438]
[1727475476336,1.55571236,2701.7,2701.5,3.75605438]
[1727475476539,1.16680955,2701.6,2701.5,3.75605438]
[1727475478371,1.1668097,2701.6,2701.5,3.75605438]
[1727475479168,1.16689008,2701.6,2701.5,3.75605438]
[1727475479383,1.16683993,2701.6,2701.5,3.75605438]
[1727475479540,1.55571236,2701.6,2701.5,3.75605438]
[1727475480246,1.55571236,2701.7,2701.5,3.75605438]
[1727475480649,1.16679423,2701.6,2701.5,3.75605438]
[1727475481360,1.55571236,2701.6,2701.5,3.75605438]
[1727475482237,1.16678138,2701.6,2701.5,3.75605438]
[1727475483265,1.55571236,2701.7,2701.5,3.75605438]
[1727475483470,1.55571236,2701.6,2701.5,3.75605438]
[1727475484452,1.16680927,2701.6,2701.5,3.75605438]
[1727475485348,1.55571236,2701.6,2701.5,3.75595438]
[1727475485885,1.55571236,2701.7,2701.6,3.70151]
[1727475486245,1.94469834,2701.8,2701.6,3.75424467]
[1727475486442,1.55578974,2701.7,2701.6,3.75424467]
[1727475487377,1.94469834,2701.8,2701.6,3.75424467]
[1727475488160,1.55583951,2701.7,2701.6,3.75424467]
[1727475491583,1.94476834,2701.8,2701.6,3.75424467]
[1727475491757,1.55595691,2701.7,2701.6,3.75424467]
[1727475492792,1.94476834,2701.7,2701.6,3.75424467]
[1727475493299,1.94476834,2701.8,2701.6,3.75424467]
[1727475493586,1.55606765,2701.7,2701.6,3.75424467]
[1727475494564,1.94504925,2701.8,2701.6,3.75424467]
[1727475494767,1.94504925,2701.7,2701.6,3.75424467]
[1727475495565,1.55622174,2701.7,2701.6,3.75424467]
[1727475496495,1.94504925,2701.7,2701.6,3.75424467]
[1727475497700,1.55633677,2701.7,2701.6,3.75424467]
[1727475498772,1.55630717,2701.7,2701.6,3.75424467]
[1727475499405,1.94538681,2701.7,2701.6,3.75424467]
[1727475499705,1.55649621,2701.7,2701.6,3.75424467]
[1727475500711,1.94538681,2701.7,2701.6,3.75424467]
[1727475501082,1.94538681,2701.8,2701.6,3.75424467]
[1727475501290,1.55655869,2701.7,2701.6,3.75424467]
[1727475503811,1.94538681,2701.8,2701.6,3.75424467]
[1727475504181,1.55671577,2701.7,2701.6,3.75424467]
[1727475504608,1.94538681,2701.8,2701.6,3.75424467]
[1727475504911,1.55687955,2701.7,2701.6,3.75424467]
[1727475506517,1.94538681,2701.8,2701.6,3.75424467]
[1727475506713,1.94538681,2701.7,2701.6,3.75424467]
[1727475507883,1.55685321,2701.7,2701.6,3.75424467]
[1727475508677,1.946048,2701.8,2701.6,3.75424467]
[1727475508896,1.946048,2701.7,2701.6,3.75424467]
[1727475509822,1.946048,2701.7,2701.6,0.05273467]
[1727475510179,1.946048,2701.7,2701.5,3.70163]
[1727475510388,1.55684874,2701.6,2701.5,3.70163]
[1727475513645,1.55684874,2701.6,2701.4,3.70168]
[1727475513646,1.94618046,2701.6,2701.4,7.40339]
[1727475513942,1.55693027,2701.6,2701.4,3.70168]
[1727475514148,1.55693027,2701.6,2701.5,3.70164]
[1727475514814,1.94618046,2701.7,2701.5,3.70164]
[1727475515148,1.94618046,2701.6,2701.5,7.40328]
[1727475515328,1.94618046,2701.6,2701.5,3.70164]
[1727475515542,2.14079851,2701.6,2701.1,0.324]
[1727475515739,2.76382462,2701.2,2701.1,0.324]
[1727475515922,0.8179,2701.2,2701.1,0.324]
[1727475516123,6.0373076,2701.2,2701.1,0.324]
[1727475516321,7.98358431,2701.2,2701.1,0.324]
[1727475516525,4.28153431,2701.2,2701.1,0.324]
[1727475516946,7.98358431,2701.2,2701.1,0.37557244]
[1727475517245,5.64832671,2701.2,2701.1,0.37557244]
[1727475517418,7.98078441,2701.2,2701.1,0.37557244]
[1727475518333,5.64832671,2701.2,2701.1,0.37557244]
[1727475518845,1.94627671,2701.2,2701.1,0.37557244]
[1727475519050,2.7595833,2701.2,2701.1,0.37557244]
[1727475519237,1.9416833,2701.3,2701.1,0.37557244]
[1727475519545,1.16485213,2701.2,2701.1,4.88706244]
[1727475520357,1.16485213,2701.3,2701.1,4.83549]
[1727475520513,1.16485213,2701.3,2701.2,0.05148457]
[1727475520727,1.16485213,2701.4,2701.3,3.70192]
[1727475520925,1.16485213,2701.5,2701.4,0.8093]
[1727475521145,1.16485213,2701.5,2701.4,6.05550953]
[1727475521349,1.16485213,2701.5,2701.4,4.56228883]
[1727475522138,1.16485213,2701.5,2701.4,0.05130883]
[1727475522353,1.16485213,2701.5,2701.3,3.7019]
[1727475522557,1.16485213,2701.5,2701.4,0.05130883]
[1727475522763,1.16485213,2701.6,2701.4,0.05130883]
[1727475524427,1.16485213,2701.6,2701.4,3.75308883]
[1727475524770,1.16485213,2701.6,2701.5,0.05122097]
[1727475524932,1.55308864,2701.6,2701.5,0.05122097]
[1727475525463,1.16486367,2701.6,2701.5,0.05122097]
[1727475526041,1.55308864,2701.7,2701.5,0.05122097]
[1727475526942,1.16489818,2701.6,2701.5,0.05122097]
[1727475527944,1.55308864,2701.7,2701.5,0.05122097]
[1727475528330,1.16489096,2701.6,2701.5,0.05122097]
[1727475528671,1.1648861,2701.6,2701.5,0.05122097]
[1727475529049,1.45308864,2701.7,2701.5,0.05122097]
[1727475529458,1.16489387,2701.6,2701.5,0.05122097]
[1727475530072,1.45308864,2701.7,2701.5,0.05122097]
[1727475530239,1.94148498,2701.7,2701.3,3.70191]
[1727475530444,1.16489117,2701.5,2701.3,3.70191]
[1727475531037,1.06489117,2701.5,2701.3,3.70191]
[1727475532045,1.06489117,2701.5,2701.4,0.05140173]
[1727475533541,1.06489117,2701.5,2701.3,3.70191]
[1727475534060,1.06489117,2701.5,2701.4,0.05140173]
[1727475536547,0.96489117,2701.5,2701.4,0.05140173]
[1727475536748,0.46489117,2701.5,2701.4,0.05140173]
[1727475538778,2.31337631,2701.6,2701.4,0.05140173]
[1727475538981,2.31337631,2701.6,2701.2,3.70202]
[1727475539140,2.31337631,2701.6,2701.5,0.05158331]
[1727475539345,3.4791324,2701.6,2701.2,3.70202]
[1727475539876,3.4791324,2701.6,2701.3,0.05175903]
[1727475540258,3.4791324,2701.6,2701.2,3.70202]
[1727475540458,3.4791324,2701.6,2701.4,0.05167117]
[1727475540779,3.4791324,2701.6,2701.2,3.70202]
[1727475541375,2.31337631,2701.6,2701.3,3.75365903]
[1727475542344,2.31337631,2701.6,2701.3,0.05175903]
[1727475542793,2.31337631,2701.6,2701.2,7.40398]
[1727475542794,2.31337631,2701.6,2701.4,0.05167117]
[1727475543097,2.31337631,2701.6,2701.2,7.40394]
[1727475543270,2.31337631,2701.6,2701.5,0.05158331]
[1727475543451,2.31337631,2701.6,2701.2,3.70196]
[1727475543951,2.31337631,2701.6,2701.2,7.40394]
[1727475544154,2.31337631,2701.6,2701.3,0.05175903]
[1727475544445,2.31337631,2701.6,2701.2,7.40394]
[1727475544671,2.31337631,2701.6,2701.4,0.05167117]
[1727475544878,2.31337631,2701.6,2701.2,7.40394]
[1727475545189,2.31337631,2701.6,2701.5,0.05158331]
[1727475545953,0.7601,2701.6,2701.5,0.05158331]
[1727475546553,0.7601,2701.6,2701.3,3.7018]
[1727475546777,0.7601,2701.6,2701.5,0.05158331]
[1727475546986,2.31357475,2701.6,2701.5,0.05158331]
[1727475547662,2.31357475,2701.6,2701.3,3.7018]
[1727475547863,1.16514319,2701.4,2701.1,0.324]
[1727475548189,1.16514319,2701.4,2701.2,3.70202]
[1727475548697,1.16514319,2701.4,2701.2,7.40404]
[1727475549060,1.16514319,2701.4,2701.2,3.70097137]
[1727475549484,1.16514319,2701.4,2701.2,7.40295137]
[1727475551910,1.16514319,2701.4,2701.2,3.70097137]
[1727475552799,1.16514319,2701.3,2701.2,3.70097137]
[1727475553011,1.16528951,2701.3,2701.2,3.70097137]
[1727475553164,1.16530074,2701.3,2701.2,3.70097137]
[1727475554211,1.16529593,2701.3,2701.2,3.70097137]
[1727475554962,1.16529593,2701.3,2701.1,4.02616]
[1727475555610,1.16529593,2701.3,2701.1,0.324]
[1727475555762,1.55347475,2701.2,2701.1,4.02619]
[1727475555964,1.55347475,2701.2,2701.1,0.324]
[1727475556193,1.55347475,2701.3,2701.1,0.324]
[1727475556503,1.16542013,2701.2,2701.1,0.324]
[1727475557177,1.16542013,2701.3,2701.1,0.324]
[1727475558629,1.16542013,2701.2,2701.1,0.324]
[1727475561127,1.55347475,2701.2,2701.1,0.324]
[1727475561289,1.16584525,2701.2,2701.1,0.324]
[1727475561984,1.16584525,2701.2,2701.1,0.37601374]
[1727475562385,1.55347475,2701.2,2701.1,0.37601374]
[1727475564795,1.5556026,2701.2,2701.1,0.37601374]
[1727475565201,1.94303118,2701.2,2701.1,0.37601374]
[1727475565411,1.55600024,2701.2,2701.1,0.37601374]
[1727475566044,1.50600024,2701.2,2701.1,0.37601374]
[1727475566393,1.94487021,2701.2,2701.1,0.37601374]
[1727475567533,0.7614,2701.4,2701.1,0.37601374]
[1727475567534,1.94487021,2701.3,2701.1,0.37601374]
[1727475568405,1.94487021,2701.2,2701.1,0.37601374]
[1727475569008,1.94487021,2701.3,2701.1,0.37601374]
[1727475570941,1.94475931,2701.3,2701.1,0.37601374]
[1727475571434,1.94475931,2701.2,2701.1,0.37601374]
[1727475573611,1.94475931,2701.3,2701.1,0.37601374]
[1727475574050,1.55565567,2701.2,2701.1,0.37601374]
[1727475579149,1.94467606,2701.2,2701.1,0.37601374]
[1727475579351,1.94467606,2701.2,2701.1,4.07820374]
[1727475579730,1.55579495,2701.2,2701.1,4.07820374]
[1727475580451,1.94467606,2701.2,2701.1,4.07820374]
[1727475580764,1.94479932,2701.3,2701.1,4.07820374]
[1727475581227,1.55590025,2701.2,2701.1,4.07820374]
[1727475581437,1.55590686,2701.2,2701.1,4.07820374]
[1727475581632,1.55597979,2701.2,2701.1,4.07820374]
[1727475585020,1.94479932,2701.2,2701.1,4.07820374]
[1727475585863,1.94507115,2701.2,2701.1,4.07820374]
[1727475586067,1.55607545,2701.2,2701.1,4.07820374]
[1727475589837,1.55607545,2701.2,2701.1,4.02619]
[1727475590045,1.55607545,2701.2,2701.1,4.07827808]
[1727475592577,1.94540351,2701.3,2701.1,4.07827808]
[1727475593870,1.94540351,2701.2,2701.1,4.07827808]
[1727475594170,1.94540351,2701.3,2701.1,4.07827808]
[1727475594767,1.94540351,2701.2,2701.1,4.07827808]
[1727475595677,1.94574009,2701.3,2701.1,4.07827808]
[1727475596393,1.94574009,2701.2,2701.1,4.07827808]
[1727475598805,1.94574009,2701.2,2701.1,4.90547808]
[1727475599102,1.55680166,2701.2,2701.1,6.45000761]
[1727475599258,1.55682057,2701.3,2701.1,6.45000761]
[1727475599457,1.94574009,2701.3,2701.2,3.70205]
[1727475599657,1.94574009,2701.4,2701.2,3.75290354]
[1727475600068,1.94574009,2701.3,2701.2,3.75290354]
[1727475600274,1.5568734,2701.3,2701.2,3.75290354]
[1727475600501,1.94574009,2701.4,2701.2,3.75290354]
[1727475600502,1.94613477,2701.4,2701.2,3.75290354]
[1727475600903,1.55690386,2701.3,2701.2,3.75290354]
[1727475601270,1.94624071,2701.3,2701.2,3.75290354]
[1727475601470,1.94624071,2701.3,2701.2,0.05085354]
[1727475601700,0.19462407,2701.3,2701.2,0.05085354]
[1727475602202,2.33536173,2701.4,2701.2,0.05085354]
[1727475602603,6.85213173,2701.5,2701.2,0.05085354]
[1727475602807,2.33536173,2701.4,2701.2,0.05085354]
[1727475602978,3.15046173,2701.5,2701.2,0.05085354]
[1727475603181,1.94611137,2701.3,2701.1,4.85337]
[1727475603398,3.15046173,2701.5,2701.1,4.85337]
[1727475603399,1.94611137,2701.2,2701.1,4.85337]
[1727475603774,1.94611137,2701.3,2701.1,4.85337]
[1727475604007,1.94611274,2701.2,2701.1,4.85337]
[1727475604531,1.94611274,2701.3,2701.1,4.85337]
[1727475604679,1.55692505,2701.2,2701.1,4.85337]
[1727475605424,1.55690124,2701.2,2701.1,4.85337]
[1727475605577,1.94611274,2701.3,2701.1,4.85337]
[1727475606313,1.55691857,2701.2,2701.1,4.85337]
[1727475607110,1.94611274,2701.3,2701.1,4.90427425]
[1727475607312,1.55694039,2701.2,2701.1,4.90427425]
[1727475607515,1.55694809,2701.2,2701.1,4.90427425]
[1727475607812,1.94611274,2701.2,2701.1,4.90427425]
[1727475608394,1.55695708,2701.2,2701.1,4.90427425]
[1727475609408,1.94611274,2701.3,2701.1,4.90427425]
[1727475609601,1.94611274,2701.2,2701.1,4.90427425]
[1727475610393,1.94611274,2701.3,2701.1,4.90427425]
[1727475610598,1.5569899,2701.2,2701.1,4.90427425]
[1727475613819,1.94611274,2701.3,2701.1,4.90427425]
[1727475614010,1.55701712,2701.2,2701.1,4.90427425]
[1727475614212,1.94611274,2701.3,2701.1,4.90427425]
[1727475614414,1.55701985,2701.2,2701.1,4.90427425]
[1727475614629,1.55702197,2701.2,2701.1,4.90427425]
[1727475615748,1.94611274,2701.2,2701.1,4.90427425]
[1727475616298,1.94611274,2701.3,2701.1,4.90427425]
[1727475616937,1.55698512,2701.2,2701.1,4.90427425]
[1727475617839,1.94611274,2701.2,2701.1,4.90427425]
[1727475618157,1.94611274,2701.2,2701.1,6.44880378]
[1727475618158,1.55703181,2701.2,2701.1,6.44880378]
[1727475618448,2.33533529,2701.5,2701.3,3.70192]
[1727475618449,1.16767784,2701.4,2701.3,3.70192]
[1727475618758,1.16767784,2701.5,2701.4,4.48668]
[1727475619237,1.16767784,2701.5,2701.4,4.53723701]
[1727475620041,1.16767784,2701.6,2701.5,3.70164]
[1727475620237,1.16767784,2701.6,2701.5,5.24616953]
[1727475620540,1.16767784,2701.6,2701.5,5.29653183]
[1727475620943,1.16767784,2701.7,2701.6,3.70151]
[1727475621442,1.16767784,2701.7,2701.6,3.75178445]
[1727475622142,1.16767784,2701.8,2701.6,3.75178445]
[1727475622439,1.16767784,2701.8,2701.7,1.54452953]
[1727475622839,1.16767784,2701.8,2701.7,1.59471614]
[1727475623336,1.16767784,2701.8,2701.7,5.29608614]
[1727475623539,1.16767784,2701.9,2701.7,5.29608614]
[1727475624240,1.16767784,2701.8,2701.7,5.29600614]
[1727475624442,1.16767784,2701.9,2701.7,5.29600614]
[1727475625419,1.16767784,2702.0,2701.8,3.70119]
[1727475625626,1.16767784,2702.0,2701.9,5.24561953]
[1727475625821,1.16767784,2702.1,2701.9,5.24561953]
[1727475626149,1.16767784,2702.0,2701.9,5.29517063]
[1727475627059,1.16767784,2702.1,2701.9,5.29517063]
[1727475627869,1.16767784,2702.3,2702.2,3.70068]
[1727475628147,1.16767784,2702.4,2702.3,4.46135]
[1727475628334,1.16767784,2702.6,2702.5,3.70027]
[1727475628756,1.16767784,2702.7,2702.6,3.70014]
[1727475628963,1.16767784,2702.7,2702.6,5.24466953]
[1727475629250,1.16767784,2702.7,2702.6,5.29360599]
[1727475629450,1.16767784,2702.8,2702.6,5.29360599]
[1727475630363,1.94037784,2702.9,2702.6,5.29360599]
[1727475630660,1.16767784,2703.0,2702.9,3.69972]
[1727475630861,1.16767784,2703.2,2702.8,5.24425953]
[1727475631013,1.94037784,2703.3,2703.0,1.54452953]
[1727475631362,0.91373287,2703.3,2703.2,1.54452953]
[1727475631519,1.16767784,2703.4,2703.2,1.54452953]
[1727475631714,1.16767784,2703.4,2703.2,0.0481313]
[1727475632265,1.16767784,2703.4,2703.2,0.09450185]
[1727475632414,1.94037784,2703.5,2703.2,0.09450185]
[1727475632613,0.7727,2703.5,2703.2,0.09450185]
[1727475632823,1.94037784,2703.5,2703.2,0.09450185]
[1727475633110,1.49230597,2703.5,2703.2,0.09450185]
[1727475634175,1.49230597,2703.5,2703.1,3.69944]
[1727475634316,1.49230597,2703.5,2703.3,0.09429765]
[1727475634513,1.49230597,2703.5,2703.0,5.24398953]
[1727475634736,1.49230597,2703.5,2703.4,0.0942082]
[1727475634935,1.49230597,2703.5,2703.0,5.24398953]
[1727475635150,1.49230597,2703.5,2703.4,0.0942082]
[1727475635347,1.49230597,2703.5,2703.0,5.24398953]
[1727475635554,0.7727,2703.5,2703.4,0.0942082]
[1727475635825,0.7727,2703.5,2703.0,5.24398953]
[1727475636467,0.7727,2703.5,2703.1,0.09447657]
[1727475643284,3.69906,2703.4,2702.9,3.69972]
[1727475643484,3.69906,2703.4,2703.0,0.09407861]
[1727475644072,4.47215,2703.1,2703.0,0.09407861]
[1727475644409,4.47215,2703.1,2702.5,3.70016]
[1727475644594,4.47215,2703.1,2703.0,0.09119562]
[1727475644828,4.47215,2703.1,2702.5,3.70016]
[1727475645313,4.47215,2703.1,2702.6,0.0916928]
[1727475646441,4.47215,2703.1,2702.6,1.63622233]
[1727475648417,4.47215,2703.1,2702.6,0.0916928]
[1727475651743,4.47215,2703.1,2702.6,3.7918128]
[1727475654967,0.7727,2703.1,2702.6,0.0916928]
[1727475655163,4.47216,2703.1,2702.6,3.7918128]
[1727475655489,0.7727,2703.1,2702.6,0.0916928]
[1727475655781,0.7727,2703.1,2702.6,3.7918228]
[1727475655782,4.47216,2703.1,2702.6,3.7918228]
[1727475659903,4.47216,2703.1,2702.8,3.69984]
[1727475659904,0.7727,2703.1,2702.8,3.69984]
[1727475660105,0.7727,2703.1,2702.8,7.39962]
[1727475660279,0.7727,2703.1,2702.8,3.69978]
[1727475660473,0.7727,2703.1,2702.9,0.0889433]
[1727475661318,0.7727,2703.1,2702.9,3.7886433]
[1727475661491,0.7727,2703.1,2702.9,0.0889433]
[1727475661696,1.15994137,2703.1,2702.9,0.0889433]
[1727475661895,0.7727,2703.1,2702.9,0.0889433]
[1727475667323,1.94037784,2703.1,2702.7,5.99631953]
[1727475667525,1.94037784,2703.1,2703.0,0.08862176]
[1727475667721,1.94037784,2703.1,2702.8,3.69985]
[1727475667935,1.94037784,2703.1,2703.0,0.08862176]
[1727475667936,0.7727,2703.1,2703.0,0.08862176]
[1727475668137,0.7727,2703.1,2702.8,3.69985]
[1727475668291,1.94037784,2703.1,2703.0,0.08862176]
[1727475668499,1.94037784,2703.1,2702.8,3.69985]
[1727475668998,1.94037784,2703.1,2702.9,0.08871124]
[1727475670934,1.16767784,2703.0,2702.9,0.08871124]
[1727475671612,2.32973181,2703.1,2702.9,0.08871124]
[1727475671938,1.16454266,2703.0,2702.9,0.08871124]
[1727475672937,1.55703181,2703.0,2702.9,0.08871124]
[1727475673440,1.55409157,2703.0,2702.7,4.4518]
[1727475673641,1.16561647,2702.8,2702.7,4.4518]
[1727475674106,1.55415529,2702.9,2702.7,4.4518]
[1727475674107,1.16561647,2702.9,2702.8,3.69986]
[1727475675768,1.55415529,2703.0,2702.8,3.69986]
[1727475676139,1.16579972,2702.9,2702.8,3.69986]
[1727475676957,1.95339972,2702.9,2702.6,7.40014]
[1727475677169,1.16579972,2702.8,2702.7,3.7]
[1727475677373,1.55415529,2702.8,2702.7,3.7]
[1727475677733,1.55415529,2702.9,2702.7,3.7]
[1727475678341,1.16593105,2702.8,2702.7,3.7]
[1727475679174,1.55415529,2702.9,2702.7,3.7]
[1727475680374,1.16600031,2702.8,2702.7,3.7]
[1727475682043,1.16600031,2702.8,2702.7,3.78883915]
[1727475683664,1.55415529,2702.9,2702.7,3.78883915]
[1727475683859,1.16622204,2702.8,2702.7,3.78883915]
[1727475684560,1.55415529,2702.9,2702.7,3.78883915]
[1727475684884,1.16626975,2702.8,2702.7,3.78883915]
[1727475685450,1.55415529,2702.9,2702.7,3.78883915]
[1727475685952,1.16629425,2702.8,2702.7,5.33336868]
[1727475687557,1.55415529,2702.9,2702.7,5.33336868]
[1727475687783,1.16641544,2702.8,2702.7,5.33336868]
[1727475688282,1.55415529,2702.9,2702.7,5.33336868]
[1727475688588,1.16646492,2702.8,2702.7,5.33336868]
[1727475690994,1.16646492,2702.8,2702.7,5.40736328]
[1727475691197,1.16646492,2702.9,2702.8,4.53286]
[1727475691605,1.16646492,2703.1,2703.0,4.53259]
[1727475691892,1.16646492,2703.2,2703.1,3.69945]
[1727475692282,1.16646492,2703.3,2703.2,3.69931]
[1727475692598,1.16646492,2703.3,2703.2,5.33222665]
[1727475693598,1.16646492,2703.4,2703.3,3.69918]
[1727475693817,1.55415529,2703.5,2703.4,3.69904]
[1727475694024,1.55415529,2703.5,2703.4,5.24356953]
[1727475694313,1.55415529,2703.5,2703.4,5.33177774]
[1727475695033,1.16527987,2703.5,2703.4,5.33177774]
[1727475695183,1.55415529,2703.5,2703.4,5.33177774]
[1727475695512,1.55415529,2703.6,2703.4,5.33177774]
[1727475695901,1.55415529,2703.5,2703.4,5.33177774]
[1727475696278,1.55415529,2703.6,2703.4,5.33177774]
[1727475696484,1.16488869,2703.5,2703.4,5.33177774]
[1727475696717,1.55415529,2703.5,2703.4,5.33177774]
[1727475696906,1.1648512,2703.5,2703.4,5.33177774]
[1727475697587,1.1648512,2703.6,2703.4,5.33177774]
[1727475697793,1.1648512,2703.5,2703.4,5.33177774]
[1727475698194,1.1648512,2703.6,2703.5,3.6989]
[1727475698723,1.55415529,2703.7,2703.5,3.6989]
[1727475698724,1.55415529,2703.7,2703.5,0.08811876]
[1727475700220,0.8332,2703.6,2703.5,0.08811876]
[1727475700403,0.8332,2703.6,2703.2,3.69931]
[1727475700604,1.1645078,2703.4,2703.2,3.69931]
[1727475703837,0.8332,2703.3,2703.0,5.24410953]
[1727475704657,0.8332,2703.3,2703.0,8.94361953]
[1727475706091,0.8332,2703.3,2703.1,3.69943]
[1727475707930,1.9977078,2703.3,2703.1,3.69943]
[1727475708137,1.9977078,2703.3,2703.0,5.24405953]
[1727475708710,1.55170071,2703.2,2703.0,5.24405953]
[1727475708914,1.55170071,2703.2,2703.1,3.69945]
[1727475709134,0.38719291,2703.2,2703.1,3.69945]
[1727475709540,1.9977078,2703.3,2703.1,3.69945]
[1727475709730,0.38719118,2703.2,2703.1,3.69945]
[1727475712030,0.38719118,2703.2,2703.1,3.78492184]
[1727475718217,0.38719118,2703.2,2703.1,3.85890587]
[1727475718420,0.38719118,2703.2,2703.1,3.78492184]
[1727475720947,1.1645078,2703.4,2703.3,3.69918]
[1727475721332,1.1645078,2703.4,2703.3,3.78463528]
[1727475723737,1.1646801,2703.4,2703.3,3.78463528]
[1727475725765,2.32557707,2703.5,2703.3,3.78463528]
[1727475725962,1.55267707,2703.4,2703.3,3.78463528]
[1727475726149,1.16483286,2703.4,2703.3,3.78463528]
[1727475726328,1.16483283,2703.4,2703.3,3.78463528]
[1727475726651,1.16494648,2703.4,2703.3,3.78463528]
[1727475727429,1.55267707,2703.4,2703.3,3.78463528]
[1727475727856,2.32557707,2703.5,2703.3,3.78463528]
[1727475728541,1.16511845,2703.4,2703.3,3.78463528]
[1727475728943,1.16511845,2703.5,2703.4,3.69904]
[1727475729166,1.16511845,2703.5,2703.4,6.13471216]
[1727475730464,1.16511845,2703.6,2703.5,3.6989]
[1727475730933,1.16511845,2703.6,2703.5,3.78415318]
[1727475731560,1.55267707,2703.6,2703.5,3.78415318]
[1727475732069,1.55267707,2703.7,2703.5,3.78415318]
[1727475732569,1.16537773,2703.6,2703.5,3.78415318]
[1727475733369,1.16529296,2703.6,2703.5,3.78415318]
[1727475733534,1.55267707,2703.7,2703.5,3.6989]
[1727475733867,1.55267707,2703.7,2703.5,3.78391191]
[1727475734368,1.16539276,2703.6,2703.5,3.78391191]
[1727475734573,1.55267707,2703.7,2703.5,3.78391191]
[1727475735440,1.55267707,2703.6,2703.5,3.78391191]
[1727475735859,1.55267707,2703.7,2703.5,3.78391191]
[1727475736445,1.93983886,2703.7,2703.5,3.78391191]
[1727475736652,1.55267707,2703.6,2703.5,3.78391191]
[1727475740159,1.93983886,2703.7,2703.5,3.78391191]
[1727475741556,1.55267707,2703.7,2703.5,3.78391191]
[1727475742084,1.16562302,2703.6,2703.5,3.78391191]
[1727475742378,1.55267707,2703.7,2703.5,3.78391191]
[1727475745086,1.16553965,2703.6,2703.5,3.78391191]
[1727475749651,1.55267707,2703.8,2703.6,3.69877]
[1727475750010,1.16526154,2703.7,2703.6,5.24329953]
[1727475751081,1.16526154,2703.7,2703.6,1.54452953]
[1727475751396,1.16526154,2703.8,2703.6,1.54452953]
[1727475751787,1.16526154,2703.7,2703.6,1.54452953]
[1727475752286,1.16526154,2703.7,2703.6,5.24329953]
[1727475753289,1.16526154,2703.8,2703.7,3.69863]
[1727475757171,1.16526154,2703.8,2703.7,3.7816572]
[1727475760094,1.16526154,2703.8,2703.7,4.5836572]
[1727475760289,1.55267707,2704.0,2703.8,3.69849]
[1727475760290,1.16526154,2703.9,2703.8,3.69849]
[1727475760476,1.16526154,2703.9,2703.8,5.24301953]
[1727475760683,1.16526154,2703.9,2703.8,5.32588308]
[1727475764165,1.16526154,2704.0,2703.9,3.69836]
[1727475764464,1.16526154,2704.3,2704.2,3.69795]
[1727475764663,1.16526154,2704.3,2704.2,5.24247953]
[1727475764895,1.16526154,2704.3,2704.2,5.32474427]
[1727475765105,1.16526154,2704.3,2704.2,5.39869773]
[1727475765403,0.1124055,2704.4,2704.3,4.49901]
[1727475765703,0.1124055,2704.4,2704.3,4.58106941]
[1727475767225,0.1124055,2704.4,2704.3,7.58106941]